[Event "44th Chess Olympiad Women 2022"]
[Site "Chennai"]
[Date "2022.08.02"]
[Round "5.21"]
[White "Ayzenberg, Alena"]
[Black "Rozman, Monika"]
[Result "1-0"]
[ECO "E01"]
[WhiteElo "2023"]
[BlackElo "2104"]
[Annotator "NA RC"]
[PlyCount "119"]
[EventDate "2022.07.29"]
[EventType "team-tourn"]
[EventCountry "IND"]
[SourceTitle "playchess.com"]
[Source "ChessBase"]
[SourceQuality "1"]
[WhiteTeam "Norway"]
[BlackTeam "Slovenia"]
[WhiteTeamCountry "NOR"]
[BlackTeamCountry "SLO"]
[TimeControl "40/5400+30:1800+30"]

1. d4 {[%emt 0:00:02]} d5 {[%emt 0:00:05]} 2. c4 {[%emt 0:01:41]} c6 {[%emt 0:00:04]} 3. Nf3 {[%emt 0:00:07]} Nf6 {[%emt 0:00:05]} 4. g3 {[%emt 0:01:05]} e6 {[%emt 0:03:43]} 5. Bg2 {[%emt 0:00:18]} Nbd7 {[%emt 0:01:20]} 6. O-O {[%emt 0:00:44]} Bd6 {[%emt 0:02:09]} 7. Nc3 {[%emt 0:00:28]} O-O {[%emt 0:00:28]} 8. Qc2 {[%emt 0:00:31]} Re8 {[%emt 0:02:42]} 9. e4 {[%emt 0:02:44]} dxe4 {[%emt 0:00:35]} 10. Nxe4 {[%emt 0:01:10]} Nxe4 {[%emt 0:04:34]} 11. Qxe4 {[%emt 0:00:06]} e5 {[%emt 0:02:01]} 12. d5 {[%emt 0:11:46]} Nf6 {[%emt 0:01:26]} 13. Qc2 {[%emt 0:01:37]} cxd5 {[%emt 0:05:33]} 14. cxd5 {[%emt 0:00:18]} b6 {[%emt 0:01:11]} 15. Be3 {[%emt 0:08:58]} Ba6 {[%emt 0:06:38]} 16. Rfd1 {[%emt 0:09:38]} Qd7 {[%emt 0:02:57]} 17. Ng5 {[%emt 0:09:30]} h6 {[%emt 0:02:56]} 18. Ne4 {[%emt 0:09:35]} Nxe4 {[%emt 0:01:38]} 19. Qxe4 {[%emt 0:01:15]} Rac8 {[%emt 0:03:15]} 20. Qh4 {[%emt 0:05:45]} Qe7 {[%emt 0:02:29]} 21. Qg4 {[%emt 0:01:45]} Rc2 {[%emt 0:04:45]} 22. Qa4 {[%emt 0:03:33]} Rxb2 {[%emt 0:06:09]} 23. Qxa6 {[%emt 0:01:03]} Bc5 {[%emt 0:00:12]} 24. Qd3 {[%emt 0:04:09]} Rd8 {[%emt 0:02:01]} 25. Rdb1 {[%emt 0:02:19]} Rxb1+ {[%emt 0:04:13]} 26. Rxb1 {[%emt 0:00:21]} Qd6 {[%emt 0:00:46]} 27. Bxc5 {[%emt 0:00:18]} Qxc5 {[%emt 0:00:18]} 28. Qb5 {[%emt 0:01:54]} Qxb5 {[%emt 0:05:06]} 29. Rxb5 {[%emt 0:00:08]} f5 {[%emt 0:00:07]} 30. Bf1 {[%emt 0:01:57]} Kf7 {[%emt 0:05:44]} 31. Rb2 {[%emt 0:02:32]} Ke7 {[%emt 0:07:47]} 32. Bc4 {[%emt 0:01:54]} e4 {[%emt 0:07:55]} 33. Rc2 {[%emt 0:05:15]} a5 {[%emt 0:07:52]} 34. Bb3 {[%emt 0:02:03]} g5 {[%emt 0:05:57]} 35. a4 {[%emt 0:02:00]} Rd6 {[%emt 0:00:00]} 36. Rc7+ {[%emt 0:01:04]} Kf6 {[%emt 0:00:00]} 37. Rh7 {[%emt 0:02:48]} Ke5 {[%emt 0:00:00]} 38. Re7+ {[%emt 0:00:21]} Kd4 {[%emt 0:00:00]} 39. Re6 {[%emt 0:00:37]} Kc5 {[%emt 0:00:00]} 40. Kf1 {[%emt 0:01:36]} h5 {[%emt 0:00:22]} 41. Ke2 {[%emt 0:31:33]} Rd8 {[%emt 0:08:57]} 42. Rc6+ {[%emt 0:00:00]} Kd4 {[%emt 0:00:01]} 43. Rxb6 {[%emt 0:00:00]} f4 {[%emt 0:00:02]} 44. d6 {[%emt 0:00:00]} f3+ {[%emt 0:09:14]} 45. Kd2 {[%emt 0:00:00]} e3+ {[%emt 0:01:28]} 46. fxe3+ {[%emt 0:00:00]} Ke4 {[%emt 0:00:02]} 47. Bc2+ {[%emt 0:00:00]} Ke5 {[%emt 0:00:10]} 48. Ke1 {[%emt 0:00:00]} g4 {[%emt 0:00:35]} 49. e4 {[%emt 0:00:00]} Kd4 {[%emt 0:00:52]} 50. Rb5 {[%emt 0:00:00]} f2+ {[%emt 0:04:23]} 51. Kxf2 {[%emt 0:00:00]} Kc3 {[%emt 0:00:04]} 52. Rc5+ {[%emt 0:00:00]} Kd2 {[%emt 0:00:02]} 53. Bb3 {[%emt 0:00:00]} Kd3 {[%emt 0:00:15]} 54. e5 {[%emt 0:00:54]} Rf8+ {[%emt 0:01:21]} 55. Kg2 {[%emt 0:00:27]} Ke2 {[%emt 0:00:11]} 56. Rc2+ {[%emt 0:00:17]} Ke1 {[%emt 0:00:19]} 57. Rc1+ {[%emt 0:00:57]} Ke2 {[%emt 0:00:17]} 58. Bc4+ {[%emt 0:00:25]} Ke3 {[%emt 0:00:21]} 59. Re1+ {[%emt 0:00:20]} Kd4 {[%emt 0:00:09]} 60. Bb5 {[%emt 0:00:28]} 1-0

[Event "44th Chess Olympiad Women 2022"]
[Site "Chennai"]
[Date "2022.08.02"]
[Round "5.22"]
[White "Hakimifard, Ghazal"]
[Black "Vanduyfhuys, Daria"]
[Result "1/2-1/2"]
[ECO "B90"]
[WhiteElo "2296"]
[BlackElo "2094"]
[Annotator "RC"]
[PlyCount "234"]
[EventDate "2022.07.29"]
[EventType "team-tourn"]
[EventCountry "IND"]
[SourceTitle "playchess.com"]
[Source "ChessBase"]
[SourceQuality "1"]
[WhiteTeam "Switzerland"]
[BlackTeam "Belgium"]
[WhiteTeamCountry "SUI"]
[BlackTeamCountry "BEL"]
[TimeControl "40/5400+30:1800+30"]

1. e4 {[%emt 0:00:03]} c5 {[%emt 0:00:11]} 2. Nf3 {[%emt 0:00:05]} d6 {[%emt 0:00:10]} 3. d4 {[%emt 0:00:07]} cxd4 {[%emt 0:00:06]} 4. Nxd4 {[%emt 0:00:04]} Nf6 {[%emt 0:00:08]} 5. Nc3 {[%emt 0:00:05]} a6 {[%emt 0:00:06]} 6. Be3 {[%emt 0:00:09]} e5 {[%emt 0:00:11]} 7. Nf3 {[%emt 0:00:08]} Be7 {[%emt 0:02:46]} 8. Bc4 {[%emt 0:00:20]} O-O {[%emt 0:01:24]} 9. O-O {[%emt 0:00:25]} Be6 {[%emt 0:03:04]} 10. Bb3 {[%emt 0:00:07]} h6 {[%emt 0:04:32]} 11. Qe2 {[%emt 0:00:28]} Nc6 {[%emt 0:03:29]} 12. Rfd1 {[%emt 0:00:37]} b5 {[%emt 0:05:54]} 13. Nd5 {[%emt 0:06:12]} Bxd5 {[%emt 0:01:33]} 14. Bxd5 {[%emt 0:01:51]} Nxd5 {[%emt 0:09:16]} 15. Rxd5 {[%emt 0:02:01]} Qc7 {[%emt 0:01:14]} 16. c3 {[%emt 0:08:59]} Qb7 {[%emt 0:04:16]} 17. Nd2 {[%emt 0:08:23]} f5 {[%emt 0:09:10]} 18. f3 {[%emt 0:01:31]} f4 {[%emt 0:08:13]} 19. Bf2 {[%emt 0:00:07]} Rf6 {[%emt 0:04:11]} 20. a4 {[%emt 0:06:59]} Rb8 {[%emt 0:04:16]} 21. b4 {[%emt 0:13:24]} Bd8 {[%emt 0:03:15]} 22. Nb3 {[%emt 0:07:39]} Ne7 {[%emt 0:05:15]} 23. Rd2 {[%emt 0:01:06]} Qc6 {[%emt 0:03:07]} 24. axb5 {[%emt 0:04:48]} axb5 {[%emt 0:01:43]} 25. Rd3 {[%emt 0:01:22]} Ra8 {[%emt 0:04:23]} 26. Na5 {[%emt 0:06:37]} Bxa5 {[%emt 0:02:01]} 27. bxa5 {[%emt 0:00:01]} Ra6 {[%emt 0:01:56]} 28. Rdd1 {[%emt 0:04:18]} Rf8 {[%emt 0:01:26]} 29. Qa2+ {[%emt 0:02:57]} Kh7 {[%emt 0:00:41]} 30. Qe6 {[%emt 0:00:49]} Nc8 {[%emt 0:01:56]} 31. Qd5 {[%emt 0:02:46]} Qc4 {[%emt 0:07:07]} 32. Qb7 {[%emt 0:03:49]} Rc6 {[%emt 0:01:28]} 33. a6 {[%emt 0:02:16]} Rc7 {[%emt 0:03:47]} 34. Qd5 {[%emt 0:01:37]} Na7 {[%emt 0:02:42]} 35. Qxd6 {[%emt 0:00:26]} Re8 {[%emt 0:00:13]} 36. Bb6 {[%emt 0:03:47]} Rf7 {[%emt 0:00:45]} 37. Qd5 {[%emt 0:01:46]} Rc8 {[%emt 0:01:05]} 38. Qxe5 {[%emt 0:00:38]} Qxc3 {[%emt 0:00:41]} 39. Bd4 {[%emt 0:03:34]} Qc6 {[%emt 0:01:22]} 40. Bf2 {[%emt 0:05:54]} Re8 {[%emt 0:00:47]} 41. Qd5 {[%emt 0:04:44]} Re6 {[%emt 0:04:38]} 42. h4 {[%emt 0:02:52]} Qe8 {[%emt 0:04:07]} 43. Qd8 {[%emt 0:04:25]} Kg8 {[%emt 0:08:08]} 44. Qa5 {[%emt 0:03:43]} Kh7 {[%emt 0:00:22]} 45. Rd5 {[%emt 0:04:02]} Qc8 {[%emt 0:02:55]} 46. Rf5 {[%emt 0:08:20]} Rc7 {[%emt 0:00:31]} 47. Kh2 {[%emt 0:00:27]} Rd7 {[%emt 0:08:47]} 48. Rd5 {[%emt 0:01:16]} Rf7 {[%emt 0:00:15]} 49. h5 {[%emt 0:00:39]} Rc6 {[%emt 0:01:43]} 50. Qd8 {[%emt 0:02:29]} Qe6 {[%emt 0:00:57]} 51. Qb8 {[%emt 0:00:24]} Rc8 {[%emt 0:00:48]} 52. Qd6 {[%emt 0:01:20]} Qxd6 {[%emt 0:01:18]} 53. Rxd6 {[%emt 0:00:01]} Rc2 {[%emt 0:00:13]} 54. Bg1 {[%emt 0:00:48]} Re7 {[%emt 0:00:43]} 55. Rad1 {[%emt 0:00:34]} Ra2 {[%emt 0:00:29]} 56. Rd7 {[%emt 0:00:38]} Rxd7 {[%emt 0:01:34]} 57. Rxd7 {[%emt 0:00:01]} Nc6 {[%emt 0:00:11]} 58. Rd5 {[%emt 0:02:25]} Rxa6 {[%emt 0:00:18]} 59. Rxb5 {[%emt 0:00:02]} Ra2 {[%emt 0:01:24]} 60. Rf5 {[%emt 0:00:53]} Kg8 {[%emt 0:00:37]} 61. Rxf4 {[%emt 0:00:16]} Ne5 {[%emt 0:00:08]} 62. Bd4 {[%emt 0:00:51]} Nd3 {[%emt 0:00:13]} 63. Rg4 {[%emt 0:00:08]} Ra5 {[%emt 0:00:32]} 64. Rxg7+ {[%emt 0:00:21]} Kf8 {[%emt 0:00:04]} 65. Rg3 {[%emt 0:01:31]} Nf4 {[%emt 0:00:23]} 66. e5 {[%emt 0:00:49]} Kf7 {[%emt 0:00:10]} 67. Rg4 {[%emt 0:00:16]} Nxh5 {[%emt 0:00:09]} 68. Rh4 {[%emt 0:00:10]} Kg6 {[%emt 0:00:04]} 69. Bc3 {[%emt 0:00:17]} Rc5 {[%emt 0:00:25]} 70. Bd4 {[%emt 0:00:10]} Rb5 {[%emt 0:00:05]} 71. Re4 {[%emt 0:00:02]} Ng7 {[%emt 0:00:40]} 72. e6 {[%emt 0:00:23]} Ne8 {[%emt 0:00:21]} 73. g4 {[%emt 0:00:37]} h5 {[%emt 0:00:46]} 74. gxh5+ {[%emt 0:00:15]} Rxh5+ {[%emt 0:00:04]} 75. Kg3 {[%emt 0:00:02]} Ra5 {[%emt 0:02:12]} 76. Rg4+ {[%emt 0:02:03]} Kf5 {[%emt 0:01:00]} 77. Rg8 {[%emt 0:00:14]} Ra8 {[%emt 0:00:20]} 78. e7 {[%emt 0:00:30]} Rc8 {[%emt 0:00:26]} 79. Bb6 {[%emt 0:01:03]} Ke6 {[%emt 0:00:29]} 80. Bd8 {[%emt 0:00:01]} Kd7 {[%emt 0:00:05]} 81. Rg6 {[%emt 0:00:29]} Rc1 {[%emt 0:00:24]} 82. Kf4 {[%emt 0:00:21]} Re1 {[%emt 0:00:13]} 83. Rg2 {[%emt 0:00:41]} Ke6 {[%emt 0:00:33]} 84. Rg6+ {[%emt 0:00:14]} Kd7 {[%emt 0:00:04]} 85. Rg5 {[%emt 0:01:58]} Ke6 {[%emt 0:00:25]} 86. Ba5 {[%emt 0:00:39]} Rb1 {[%emt 0:00:55]} 87. Re5+ {[%emt 0:00:16]} Kf7 {[%emt 0:00:07]} 88. Bd8 {[%emt 0:00:49]} Nd6 {[%emt 0:00:33]} 89. Rd5 {[%emt 0:00:12]} Ne8 {[%emt 0:00:53]} 90. Rd4 {[%emt 0:00:39]} Re1 {[%emt 0:00:24]} 91. Kg5 {[%emt 0:00:26]} Re5+ {[%emt 0:00:34]} 92. Kh4 {[%emt 0:00:26]} Rb5 {[%emt 0:00:48]} 93. Rf4+ {[%emt 0:00:23]} Ke6 {[%emt 0:00:05]} 94. Rf8 {[%emt 0:00:05]} Kd7 {[%emt 0:00:06]} 95. f4 {[%emt 0:00:05]} Nd6 {[%emt 0:00:18]} 96. Kg4 {[%emt 0:00:10]} Rb1 {[%emt 0:00:39]} 97. Rf6 {[%emt 0:00:37]} Rg1+ {[%emt 0:00:14]} 98. Kf3 {[%emt 0:00:01]} Ne8 {[%emt 0:00:06]} 99. Ra6 {[%emt 0:00:06]} Rf1+ {[%emt 0:00:15]} 100. Kg4 {[%emt 0:00:11]} Ng7 {[%emt 0:01:06]} 101. Kg5 {[%emt 0:01:02]} Ne8 {[%emt 0:02:41]} 102. f5 {[%emt 0:00:01]} Rg1+ {[%emt 0:00:09]} 103. Kh6 {[%emt 0:00:23]} Re1 {[%emt 0:01:18]} 104. f6 {[%emt 0:00:15]} Re6 {[%emt 0:00:19]} 105. Rxe6 {[%emt 0:02:19]} Kxe6 {[%emt 0:00:03]} 106. Kg6 {[%emt 0:00:05]} Nxf6 {[%emt 0:00:04]} 107. Kg7 {[%emt 0:00:03]} Ne8+ {[%emt 0:00:30]} 108. Kf8 {[%emt 0:00:01]} Kd7 {[%emt 0:00:08]} 109. Ba5 {[%emt 0:00:53]} Ng7 {[%emt 0:00:36]} 110. Bb4 {[%emt 0:00:13]} Ne6+ {[%emt 0:00:13]} 111. Kf7 {[%emt 0:00:01]} Nd8+ {[%emt 0:00:14]} 112. Kf8 {[%emt 0:01:11]} Ne6+ {[%emt 0:00:04]} 113. Kg8 {[%emt 0:00:21]} Ke8 {[%emt 0:00:12]} 114. Bd6 {[%emt 0:00:04]} Nd4 {[%emt 0:00:09]} 115. Bc5 {[%emt 0:00:17]} Nf5 {[%emt 0:00:05]} 116. Bb4 {[%emt 0:00:05]} Nxe7+ {[%emt 0:00:04]} 117. Bxe7 {[%emt 0:00:04]} Kxe7 {[%emt 0:00:04]} 1/2-1/2

[Event "44th Chess Olympiad Women 2022"]
[Site "Chennai"]
[Date "2022.08.02"]
[Round "5.22"]
[White "Goossens, Hanne"]
[Black "Georgescu, Lena"]
[Result "1/2-1/2"]
[ECO "B13"]
[WhiteElo "2159"]
[BlackElo "2279"]
[Annotator "NA"]
[PlyCount "71"]
[EventDate "2022.07.29"]
[EventType "team-tourn"]
[EventCountry "IND"]
[SourceTitle "playchess.com"]
[Source "ChessBase"]
[SourceQuality "1"]
[WhiteTeam "Belgium"]
[BlackTeam "Switzerland"]
[WhiteTeamCountry "BEL"]
[BlackTeamCountry "SUI"]
[TimeControl "40/5400+30:1800+30"]

1. d4 {[%emt 0:00:08]} Nf6 {[%emt 0:00:03]} 2. Nc3 {[%emt 0:00:04]} d5 {[%emt 0:00:03]} 3. Bf4 {[%emt 0:00:06]} c5 {[%emt 0:00:07]} 4. e3 {[%emt 0:00:37]} cxd4 {[%emt 0:00:13]} 5. exd4 {[%emt 0:00:06]} a6 {[%emt 0:00:12]} 6. Nf3 {[%emt 0:00:22]} Nc6 {[%emt 0:00:05]} 7. Ne5 {[%emt 0:00:28]} Bd7 {[%emt 0:00:08]} 8. Be2 {[%emt 0:03:08]} e6 {[%emt 0:00:38]} 9. O-O {[%emt 0:01:22]} Qb6 {[%emt 0:00:12]} 10. Nxc6 {[%emt 0:01:29]} Bxc6 {[%emt 0:00:07]} 11. Rb1 {[%emt 0:01:56]} Be7 {[%emt 0:06:51]} 12. Be5 {[%emt 0:05:25]} Qa5 {[%emt 0:13:20]} 13. a3 {[%emt 0:04:40]} b5 {[%emt 0:02:59]} 14. Qd3 {[%emt 0:02:30]} b4 {[%emt 0:11:33]} 15. axb4 {[%emt 0:04:24]} Qxb4 {[%emt 0:00:05]} 16. Qg3 {[%emt 0:01:56]} O-O {[%emt 0:04:16]} 17. Rfe1 {[%emt 0:07:51]} g6 {[%emt 0:05:31]} 18. Bd3 {[%emt 0:21:04]} Nd7 {[%emt 0:03:01]} 19. Ne2 {[%emt 0:01:56]} Nxe5 {[%emt 0:01:54]} 20. dxe5 {[%emt 0:02:56]} Qh4 {[%emt 0:09:19]} 21. Qe3 {[%emt 0:05:21]} Rfb8 {[%emt 0:03:06]} 22. b3 {[%emt 0:01:27]} a5 {[%emt 0:00:33]} 23. c3 {[%emt 0:06:08]} Bd8 {[%emt 0:05:15]} 24. Nd4 {[%emt 0:01:47]} Bb6 {[%emt 0:13:59]} 25. g3 {[%emt 0:02:30]} Bxd4 {[%emt 0:01:44]} 26. cxd4 {[%emt 0:00:17]} Qd8 {[%emt 0:00:16]} 27. Rec1 {[%emt 0:02:49]} Bb5 {[%emt 0:00:55]} 28. Rc5 {[%emt 0:03:25]} Bxd3 {[%emt 0:00:45]} 29. Qxd3 {[%emt 0:00:05]} Rb4 {[%emt 0:04:22]} 30. Rbc1 {[%emt 0:01:51]} Rab8 {[%emt 0:04:07]} 31. R1c3 {[%emt 0:00:53]} a4 {[%emt 0:02:57]} 32. bxa4 {[%emt 0:10:41]} Rxa4 {[%emt 0:00:10]} 33. Rc7 {[%emt 0:00:26]} Ra3 {[%emt 0:03:10]} 34. Qc2 {[%emt 0:01:12]} Rxc3 {[%emt 0:00:20]} 35. Qxc3 {[%emt 0:00:23]} Qg5 {[%emt 0:02:18]} 36. Rc8+ {[%emt 0:02:42]} 1/2-1/2

[Event "44th Chess Olympiad Women 2022"]
[Site "Chennai"]
[Date "2022.08.02"]
[Round "5.22"]
[White "De Seroux, Camille"]
[Black "Barbier, Astrid"]
[Result "0-1"]
[ECO "D02"]
[WhiteElo "2106"]
[BlackElo "1879"]
[Annotator "NA RC"]
[PlyCount "62"]
[EventDate "2022.07.29"]
[EventType "team-tourn"]
[EventCountry "IND"]
[SourceTitle "playchess.com"]
[Source "ChessBase"]
[SourceQuality "1"]
[WhiteTeam "Switzerland"]
[BlackTeam "Belgium"]
[WhiteTeamCountry "SUI"]
[BlackTeamCountry "BEL"]
[TimeControl "40/5400+30:1800+30"]

1. d4 {[%emt 0:00:04]} d5 {[%emt 0:00:14]} 2. Bf4 {[%emt 0:00:08]} e6 {[%emt 0:00:51]} 3. e3 {[%emt 0:00:13]} Nf6 {[%emt 0:00:53]} 4. Nf3 {[%emt 0:00:18]} c5 {[%emt 0:04:53]} 5. c3 {[%emt 0:00:14]} Be7 {[%emt 0:02:43]} 6. Nbd2 {[%emt 0:00:23]} O-O {[%emt 0:01:03]} 7. Bd3 {[%emt 0:01:52]} Nc6 {[%emt 0:05:59]} 8. h3 {[%emt 0:04:12]} c4 {[%emt 0:09:13]} 9. Bc2 {[%emt 0:03:41]} b5 {[%emt 0:00:29]} 10. Ne5 {[%emt 0:30:16]} Bb7 {[%emt 0:07:27]} 11. Ndf3 {[%emt 0:02:24]} b4 {[%emt 0:09:05]} 12. O-O {[%emt 0:01:44]} Nd7 {[%emt 0:04:44]} 13. Nxd7 {[%emt 0:10:45]} Qxd7 {[%emt 0:00:17]} 14. Qe2 {[%emt 0:02:34]} f5 {[%emt 0:04:16]} 15. Ba4 {[%emt 0:04:16]} Qd8 {[%emt 0:02:25]} 16. Bxc6 {[%emt 0:14:06]} Bxc6 {[%emt 0:00:10]} 17. Ne5 {[%emt 0:01:58]} Be8 {[%emt 0:01:26]} 18. Qf3 {[%emt 0:02:46]} a5 {[%emt 0:01:53]} 19. Qg3 {[%emt 0:03:46]} Bh4 {[%emt 0:01:55]} 20. Qh2 {[%emt 0:00:27]} Bf6 {[%emt 0:05:01]} 21. Nf3 {[%emt 0:00:55]} Rf7 {[%emt 0:01:31]} 22. Bd6 {[%emt 0:04:06]} Rb7 {[%emt 0:01:24]} 23. Rab1 {[%emt 0:00:45]} Bg6 {[%emt 0:02:14]} 24. Qf4 {[%emt 0:03:45]} Ra6 {[%emt 0:03:14]} 25. Bc5 {[%emt 0:02:10]} Qb8 {[%emt 0:06:28]} 26. Rfe1 {[%emt 0:01:43]} Rc6 {[%emt 0:02:13]} 27. Kh1 {[%emt 0:03:06]} h6 {[%emt 0:02:29]} 28. Rec1 {[%emt 0:00:47]} Bh7 {[%emt 0:01:37]} 29. h4 {[%emt 0:00:57]} Bg6 {[%emt 0:01:25]} 30. Re1 {[%emt 0:00:18]} Bh5 {[%emt 0:03:45]} 31. g3 {[%emt 0:00:30]} Qxf4 {[%emt 0:00:41]} 0-1

[Event "44th Chess Olympiad Women 2022"]
[Site "Chennai"]
[Date "2022.08.02"]
[Round "5.22"]
[White "De Rycke, Tyani"]
[Black "Heinatz, Gundula"]
[Result "0-1"]
[ECO "B26"]
[WhiteElo "1994"]
[BlackElo "2196"]
[Annotator "NA RC"]
[PlyCount "94"]
[EventDate "2022.07.29"]
[EventType "team-tourn"]
[EventCountry "IND"]
[SourceTitle "playchess.com"]
[Source "ChessBase"]
[SourceQuality "1"]
[WhiteTeam "Belgium"]
[BlackTeam "Switzerland"]
[WhiteTeamCountry "BEL"]
[BlackTeamCountry "SUI"]
[TimeControl "40/5400+30:1800+30"]

1. e4 {[%emt 0:00:03]} c5 {[%emt 0:00:07]} 2. Nc3 {[%emt 0:00:05]} Nc6 {[%emt 0:00:04]} 3. g3 {[%emt 0:00:07]} g6 {[%emt 0:00:11]} 4. Bg2 {[%emt 0:00:06]} Bg7 {[%emt 0:00:04]} 5. d3 {[%emt 0:00:08]} d6 {[%emt 0:00:15]} 6. Be3 {[%emt 0:00:09]} e5 {[%emt 0:00:20]} 7. Qd2 {[%emt 0:00:31]} Nge7 {[%emt 0:00:16]} 8. Bh6 {[%emt 0:01:18]} Bxh6 {[%emt 0:02:14]} 9. Qxh6 {[%emt 0:00:11]} Nd4 {[%emt 0:00:11]} 10. O-O-O {[%emt 0:02:17]} Be6 {[%emt 0:07:19]} 11. f4 {[%emt 0:07:01]} Qc7 {[%emt 0:17:29]} 12. Nh3 {[%emt 0:07:42]} O-O-O {[%emt 0:10:59]} 13. Ng5 {[%emt 0:01:34]} Kb8 {[%emt 0:04:44]} 14. Rhf1 {[%emt 0:07:26]} Nec6 {[%emt 0:06:11]} 15. Nxe6 {[%emt 0:11:56]} fxe6 {[%emt 0:00:08]} 16. fxe5 {[%emt 0:02:17]} Nxe5 {[%emt 0:00:13]} 17. Bh3 {[%emt 0:00:52]} Qe7 {[%emt 0:05:56]} 18. Rf2 {[%emt 0:03:29]} Rhg8 {[%emt 0:08:15]} 19. Rdf1 {[%emt 0:06:37]} g5 {[%emt 0:00:26]} 20. Ne2 {[%emt 0:09:27]} Nxe2+ {[%emt 0:03:23]} 21. Rxe2 {[%emt 0:00:08]} Rg6 {[%emt 0:00:46]} 22. Qh5 {[%emt 0:00:51]} Qg7 {[%emt 0:00:28]} 23. Bxe6 {[%emt 0:23:33]} Rh6 {[%emt 0:06:38]} 24. Rf7 {[%emt 0:01:42]} Nxf7 {[%emt 0:00:36]} 25. Qxf7 {[%emt 0:00:07]} Qxf7 {[%emt 0:00:03]} 26. Bxf7 {[%emt 0:00:10]} Rf6 {[%emt 0:00:12]} 27. Bd5 {[%emt 0:02:04]} Rdf8 {[%emt 0:00:09]} 28. Kd2 {[%emt 0:00:41]} Rf2 {[%emt 0:00:30]} 29. Be6 {[%emt 0:00:59]} h5 {[%emt 0:05:32]} 30. Bf5 {[%emt 0:02:01]} Rxe2+ {[%emt 0:01:08]} 31. Kxe2 {[%emt 0:00:06]} d5 {[%emt 0:00:46]} 32. Bg6 {[%emt 0:06:58]} dxe4 {[%emt 0:01:05]} 33. Bxe4 {[%emt 0:00:45]} Rf6 {[%emt 0:04:18]} 34. b3 {[%emt 0:02:31]} b5 {[%emt 0:00:41]} 35. a4 {[%emt 0:01:26]} bxa4 {[%emt 0:01:54]} 36. bxa4 {[%emt 0:00:04]} Ra6 {[%emt 0:00:07]} 37. Bd5 {[%emt 0:00:37]} Rxa4 {[%emt 0:00:32]} 38. Bc4 {[%emt 0:00:34]} Ra1 {[%emt 0:01:08]} 39. h3 {[%emt 0:00:45]} Kc7 {[%emt 0:02:40]} 40. Ke3 {[%emt 0:00:38]} Kd6 {[%emt 0:01:28]} 41. Kf3 {[%emt 0:07:03]} Ke5 {[%emt 0:01:30]} 42. h4 {[%emt 0:04:06]} gxh4 {[%emt 0:02:16]} 43. gxh4 {[%emt 0:00:13]} a5 {[%emt 0:00:36]} 44. Kg3 {[%emt 0:02:04]} a4 {[%emt 0:00:19]} 45. Kf3 {[%emt 0:04:22]} a3 {[%emt 0:00:10]} 46. Ke3 {[%emt 0:01:39]} a2 {[%emt 0:03:30]} 47. Kd2 {[%emt 0:01:03]} Rd1+ {[%emt 0:00:18]} 0-1

[Event "44th Chess Olympiad Women 2022"]
[Site "Chennai"]
[Date "2022.08.02"]
[Round "5.23"]
[White "Olde, Margareth"]
[Black "Oviedo Acosta, Paula"]
[Result "1-0"]
[ECO "A61"]
[WhiteElo "2235"]
[BlackElo "1855"]
[Annotator "NA RC"]
[PlyCount "95"]
[EventDate "2022.07.29"]
[EventType "team-tourn"]
[EventCountry "IND"]
[SourceTitle "playchess.com"]
[Source "ChessBase"]
[SourceQuality "1"]
[WhiteTeam "Estonia"]
[BlackTeam "Paraguay"]
[WhiteTeamCountry "EST"]
[BlackTeamCountry "PAR"]
[TimeControl "40/5400+30:1800+30"]

1. d4 {[%emt 0:00:02]} Nf6 {[%emt 0:00:26]} 2. c4 {[%emt 0:00:09]} c5 {[%emt 0:00:14]} 3. d5 {[%emt 0:00:09]} e6 {[%emt 0:00:24]} 4. Nc3 {[%emt 0:00:13]} exd5 {[%emt 0:00:38]} 5. cxd5 {[%emt 0:00:06]} d6 {[%emt 0:00:09]} 6. Nf3 {[%emt 0:00:11]} g6 {[%emt 0:00:23]} 7. Bf4 {[%emt 0:00:10]} a6 {[%emt 0:00:59]} 8. a4 {[%emt 0:00:07]} Bg7 {[%emt 0:01:27]} 9. h3 {[%emt 0:00:10]} O-O {[%emt 0:01:23]} 10. e3 {[%emt 0:00:05]} Re8 {[%emt 0:04:54]} 11. Bd3 {[%emt 0:00:35]} Qc7 {[%emt 0:13:16]} 12. O-O {[%emt 0:00:51]} Nbd7 {[%emt 0:00:09]} 13. a5 {[%emt 0:01:49]} Rb8 {[%emt 0:01:24]} 14. Nd2 {[%emt 0:03:49]} Nh5 {[%emt 0:05:51]} 15. Bh2 {[%emt 0:05:12]} Be5 {[%emt 0:13:01]} 16. f4 {[%emt 0:22:53]} Bxc3 {[%emt 0:11:16]} 17. bxc3 {[%emt 0:00:07]} Rxe3 {[%emt 0:06:32]} 18. Nc4 {[%emt 0:00:38]} Re8 {[%emt 0:08:04]} 19. Qf3 {[%emt 0:02:26]} b5 {[%emt 0:01:07]} 20. axb6 {[%emt 0:00:34]} Nxb6 {[%emt 0:00:13]} 21. Nxd6 {[%emt 0:08:35]} Qxd6 {[%emt 0:05:36]} 22. f5 {[%emt 0:00:10]} Qxd5 {[%emt 0:00:06]} 23. Qxd5 {[%emt 0:00:42]} Nxd5 {[%emt 0:00:07]} 24. Bxb8 {[%emt 0:00:24]} Bxf5 {[%emt 0:00:38]} 25. Bxf5 {[%emt 0:00:31]} Rxb8 {[%emt 0:00:06]} 26. Bd3 {[%emt 0:01:16]} Rb2 {[%emt 0:11:38]} 27. Rf3 {[%emt 0:05:51]} Ndf4 {[%emt 0:01:11]} 28. Bf1 {[%emt 0:00:22]} Ne6 {[%emt 0:05:41]} 29. Rxa6 {[%emt 0:10:27]} Ng5 {[%emt 0:01:12]} 30. Re3 {[%emt 0:00:54]} Rb1 {[%emt 0:00:59]} 31. Ra7 {[%emt 0:01:51]} Nf4 {[%emt 0:03:41]} 32. Re8+ {[%emt 0:02:54]} Kg7 {[%emt 0:00:05]} 33. h4 {[%emt 0:00:35]} Nge6 {[%emt 0:01:11]} 34. Ree7 {[%emt 0:01:30]} Ne2+ {[%emt 0:01:50]} 35. Kf2 {[%emt 0:00:10]} Nxc3 {[%emt 0:00:09]} 36. Rxe6 {[%emt 0:00:46]} Rb2+ {[%emt 0:00:31]} 37. Kg1 {[%emt 0:00:08]} Rb4 {[%emt 0:00:17]} 38. Re3 {[%emt 0:00:23]} Nb1 {[%emt 0:01:19]} 39. Rf3 {[%emt 0:00:09]} g5 {[%emt 0:01:10]} 40. Rfxf7+ {[%emt 0:01:57]} Kg6 {[%emt 0:00:35]} 41. Bd3+ {[%emt 0:31:28]} Kh5 {[%emt 0:30:09]} 42. Bxb1 {[%emt 0:00:13]} Rxb1+ {[%emt 0:00:06]} 43. Rf1 {[%emt 0:00:16]} Rb2 {[%emt 0:00:24]} 44. hxg5 {[%emt 0:00:16]} Kxg5 {[%emt 0:00:07]} 45. Rxh7 {[%emt 0:00:07]} c4 {[%emt 0:00:09]} 46. Rc1 {[%emt 0:00:06]} c3 {[%emt 0:01:04]} 47. Rxc3 {[%emt 0:00:05]} Rb1+ {[%emt 0:00:06]} 48. Kh2 {[%emt 0:00:12]} 1-0